fUSD/lending_fUSD_20241105
["ID","MTS","AMOUNT","RATE_DAILY","PERIOD"]
[341347147,1730818332308,-1385.21,0.00032602,2]
[341347148,1730818332318,-1053.05,0.00032602,2]
[341347149,1730818332334,-2449.39,0.00032602,2]
[341347150,1730818332344,-551.76,0.00032602,2]
[341347151,1730818332354,-1152.78,0.00032602,2]
[341347152,1730818332367,-505.75,0.00032602,2]
[341347153,1730818332377,-1169.16,0.00032602,2]
[341347154,1730818332387,-500.0,0.00032602,2]
[341347155,1730818332397,-1981.15,0.00032602,2]
[341347156,1730818332407,-500.0,0.00032602,2]
[341347157,1730818332416,-1122.88,0.00032602,2]
[341347158,1730818332426,-667.7,0.00032602,2]
[341347159,1730818332436,-765.3,0.00032602,2]
[341347160,1730818332446,-1179.4,0.00032602,2]
[341347161,1730818332457,-745.83,0.00032602,2]
[341347162,1730818332466,-1138.75,0.00032602,2]
[341347163,1730818332476,-1546.36,0.00032602,2]
[341347164,1730818332486,-1799.17,0.00032602,2]
[341347165,1730818332496,-918.0,0.00032602,2]
[341347166,1730818332505,-882.74,0.00032602,2]
[341347167,1730818332515,-715.96,0.00032602,2]
[341347168,1730818332525,-1464.77,0.00032602,2]
[341347169,1730818332534,-500.0,0.00032602,2]
[341347170,1730818332544,-821.25,0.00032602,2]
[341347171,1730818332553,-561.05,0.00032602,2]
[341347172,1730818332562,-2488.35,0.00032602,2]
[341347173,1730818332572,-1277.43,0.00032602,2]
[341347174,1730818332581,-789.16,0.00032602,2]
[341347175,1730818332590,-1983.46,0.00032602,2]
[341347176,1730818332600,-1319.52,0.00032602,2]
[341347177,1730818332609,-770.21,0.00032602,2]
[341347178,1730818332622,-933.5,0.00032602,2]
[341347179,1730818332631,-1484.81,0.00032602,2]
[341347180,1730818332641,-769.6,0.00032602,2]
[341347181,1730818332651,-2097.16,0.00032602,2]
[341347182,1730818332661,-893.08,0.00032602,2]
[341347183,1730818332671,-706.56,0.00032602,2]
[341347184,1730818332681,-626.22,0.00032602,2]
[341347185,1730818332690,-1129.24,0.00032602,2]
[341347186,1730818332700,-1181.37,0.00032602,2]
[341347187,1730818332710,-1105.93,0.00032602,2]
[341347188,1730818332720,-1949.19,0.00032602,2]
[341347189,1730818332729,-1772.13,0.00032602,2]
[341347190,1730818332739,-2148.83,0.00032602,2]
[341347191,1730818332749,-899.14,0.00032602,2]
[341347192,1730818332758,-500.0,0.00032602,2]
[341347193,1730818332767,-2651.17,0.00032602,2]
[341347194,1730818332777,-729.55,0.00032602,2]
[341347195,1730818332787,-891.77,0.00032602,2]
[341347196,1730818332796,-1337.92,0.00032602,2]
[341347197,1730818332806,-1184.12713927,0.00032602,2]
[341347198,1730818332816,-1628.51,0.00032602,2]
[341347199,1730818332826,-1340.76,0.00032602,2]
[341347200,1730818332836,-1205.1,0.00032602,2]
[341347201,1730818332846,-671.93,0.00032602,2]
[341347202,1730818332855,-2625.61,0.00032602,2]
[341347203,1730818332868,-500.0,0.00032602,2]
[341347204,1730818332878,-1052.87,0.00032602,2]
[341347205,1730818332887,-862.96,0.00032602,2]
[341347206,1730818332897,-1134.95,0.00032602,2]
[341347207,1730818332907,-713.84,0.00032602,2]
[341347208,1730818332916,-1190.36,0.00032602,2]
[341347209,1730818332926,-487.27400098,0.00032602,2]
[341347210,1730818332935,-561.87,0.00032602,2]
[341347211,1730818332946,-1258.85,0.00032602,2]
[341347212,1730818332956,-708.32,0.00032602,2]
[341347213,1730818332965,-719.74,0.00032602,2]
[341347214,1730818332976,-530.24,0.00032602,2]
[341347215,1730818332985,-533.96,0.00032602,2]
[341347216,1730818332994,-1233.24,0.00032602,2]
[341347217,1730818333004,-1568.32,0.00032602,2]
[341347218,1730818333013,-1593.99,0.00032602,2]
[341347219,1730818333023,-1606.8,0.00032602,2]
[341347220,1730818333033,-1114.96,0.00032602,2]
[341347221,1730818333043,-1019.34,0.00032602,2]
[341347222,1730818333053,-1345.66,0.00032602,2]
[341347223,1730818333062,-573.0,0.00032602,2]
[341347224,1730818333072,-500.0,0.00032602,2]
[341347225,1730818333082,-1308.07,0.00032602,2]
[341347226,1730818333091,-997.78,0.00032602,2]
[341347227,1730818333101,-510.23,0.00032602,2]
[341347228,1730818333111,-619.16,0.00032602,2]
[341347229,1730818333125,-654.14,0.00032602,2]
[341347230,1730818333135,-498.81423935,0.00032602,2]
[341347231,1730818333145,-500.0,0.00032602,2]
[341347232,1730818333155,-859.18,0.00032602,2]
[341347233,1730818333165,-685.48,0.00032602,2]
[341347234,1730818333175,-500.0,0.00032602,2]
[341347235,1730818333185,-804.47,0.00032602,2]
[341347236,1730818333198,-1490.72,0.00032602,2]
[341347237,1730818333211,-2778.32,0.00032602,2]
[341347238,1730818333220,-991.64,0.00032602,2]
[341347239,1730818333229,-1058.06,0.00032602,2]
[341347240,1730818333239,-512.56,0.00032602,2]
[341347241,1730818333250,-10560.64,0.00032602,2]
[341347242,1730818333260,-1286.83,0.00032602,2]
[341347243,1730818333272,-500.0,0.00032602,2]
[341347244,1730818333285,-574.51,0.00032602,2]
[341347245,1730818333295,-882.25,0.00032602,2]
[341347246,1730818333305,-2024.06,0.00032602,2]
[341347247,1730818333315,-2459.63,0.00032602,2]
[341347248,1730818333325,-522.65,0.00032602,2]
[341347249,1730818333334,-539.9,0.00032602,2]
[341347250,1730818333344,-832.24,0.00032602,2]
[341347251,1730818333354,-528.68,0.00032602,2]
[341347252,1730818333367,-577.06,0.00032602,2]
[341347253,1730818333377,-1759.85,0.00032602,2]
[341347254,1730818333387,-1143.05,0.00032602,2]
[341347255,1730818333397,-2134.71,0.00032602,2]
[341347256,1730818333406,-1180.55,0.00032602,2]
[341347257,1730818333415,-669.82,0.00032602,2]
[341347258,1730818333425,-500.0,0.00032602,2]
[341347259,1730818333435,-2610.73,0.00032602,2]
[341347260,1730818333445,-500.0,0.00032602,2]
[341347261,1730818333455,-812.75,0.00032602,2]
[341347262,1730818333465,-2008.76,0.00032602,2]
[341347263,1730818333475,-260.22,0.00032602,2]
[341347264,1730818333484,-839.69,0.00032602,2]
[341347265,1730818333494,-2029.5,0.00032602,2]
[341347266,1730818333503,-828.58,0.00032602,2]
[341347267,1730818333513,-500.0,0.00032602,2]
[341347268,1730818333522,-500.0,0.00032602,2]
[341347269,1730818333532,-500.0,0.00032602,2]
[341347270,1730818333541,-1273.27,0.00032602,2]
[341347271,1730818333550,-590.4,0.00032602,2]
[341347272,1730818333560,-1210.7,0.00032602,2]
[341347273,1730818333571,-1114.81,0.00032602,2]
[341347274,1730818333580,-2727.4,0.00032602,2]
[341347275,1730818333589,-12148.46,0.00032602,2]
[341347276,1730818333599,-2229.83,0.00032602,2]
[341347277,1730818333608,-511.42,0.00032602,2]
[341347278,1730818333619,-500.0,0.00032602,2]
[341347279,1730818333628,-2291.13,0.00032602,2]
[341347280,1730818333638,-500.0,0.00032602,2]
[341347281,1730818333648,-997.05,0.00032602,2]
[341347282,1730818333657,-800.14,0.00032602,2]
[341347283,1730818333666,-1162.23,0.00032602,2]
[341347284,1730818333676,-3281.13,0.00032602,2]
[341347285,1730818333685,-618.36,0.00032602,2]
[341347286,1730818333695,-20453.09,0.00032602,2]
[341347287,1730818333704,-839.45,0.00032602,2]
[341347288,1730818333713,-500.0,0.00032602,2]
[341347289,1730818333722,-694.1,0.00032602,2]
[341347290,1730818333732,-1597.24,0.00032602,2]
[341347291,1730818333741,-4040.37,0.00032602,2]
[341347292,1730818333751,-8586.16,0.00032602,2]
[341347293,1730818333760,-2313.73,0.00032602,2]
[341347294,1730818333770,-1073.79,0.00032602,2]
[341347295,1730818333779,-558.66,0.00032602,2]
[341347296,1730818333789,-5774.21,0.00032602,2]
[341347297,1730818333798,-500.0,0.00032602,2]
[341347298,1730818333807,-1029.49,0.00032602,2]
[341347299,1730818333817,-673.5,0.00032602,2]
[341347300,1730818333826,-813.15,0.00032602,2]
[341347301,1730818333835,-1674.98,0.00032602,2]
[341347302,1730818333845,-4168.65,0.00032602,2]
[341347303,1730818333854,-2221.75,0.00032602,2]
[341347304,1730818333866,-582.35384155,0.00032602,2]
[341347305,1730818333876,-623.01,0.00032602,2]
[341347306,1730818333956,-722.22,0.00032602,2]
[341347307,1730818333966,-728.55,0.00032602,2]
[341347308,1730818333976,-800.76,0.00032602,2]
[341347309,1730818333985,-1037.42,0.00032602,2]
[341347310,1730818333995,-500.0,0.00032602,2]
[341347311,1730818334005,-4458.86,0.00032602,2]
[341347312,1730818334014,-500.0,0.00032602,2]
[341347313,1730818334024,-6100.5,0.00032602,2]
[341347314,1730818334034,-1684.86,0.00032602,2]
[341347315,1730818334043,-746.32,0.00032602,2]
[341347316,1730818334052,-860.55,0.00032602,2]
[341347317,1730818334062,-1239.54,0.00032602,2]
[341347318,1730818334071,-2800.82,0.00032602,2]
[341347319,1730818334081,-3438.17,0.00032602,2]
[341347320,1730818334091,-580.29,0.00032602,2]
[341347321,1730818334099,-2595.38,0.00032602,2]
[341347322,1730818334109,-847.64,0.00032602,2]
[341347323,1730818334119,-2840.74,0.00032602,2]
[341347324,1730818334128,-3998.92,0.00032602,2]
[341347325,1730818334138,-14923.18,0.00032602,2]
[341347326,1730818334148,-500.0,0.00032602,2]
[341347327,1730818334158,-1420.05,0.00032602,2]
[341347328,1730818334168,-500.0,0.00032602,2]
[341347329,1730818334178,-7967.31,0.00032602,2]
[341347330,1730818334188,-2786.33,0.00032602,2]
[341347331,1730818334197,-500.0,0.00032602,2]
[341347332,1730818334206,-2634.78,0.00032602,2]
[341347333,1730818334216,-500.0,0.00032602,2]
[341347334,1730818334225,-4963.13,0.00032602,2]
[341347335,1730818334234,-1373.68,0.00032602,2]
[341347336,1730818334243,-3175.23,0.00032602,2]
[341347337,1730818334258,-1485.58,0.00032602,2]
[341347338,1730818334268,-8714.97,0.00032602,2]
[341347339,1730818334277,-500.0,0.00032602,2]
[341347340,1730818334286,-1668.5,0.00032602,2]
[341347341,1730818334296,-580.17,0.00032602,2]
[341347342,1730818334305,-2394.75,0.00032602,2]
[341347343,1730818334314,-3537.3,0.00032602,2]
[341347344,1730818334324,-870.25,0.00032602,2]
[341347345,1730818334334,-812.1,0.00032602,2]
[341347346,1730818334344,-641.36,0.00032602,2]
[341347347,1730818334354,-390.86676488,0.00032602,2]
[341347348,1730818334363,-519.6,0.00032602,2]
[341347349,1730818334375,-1061.46,0.00032602,2]
[341347350,1730818334385,-5273.27,0.00032602,2]
[341347351,1730818334394,-2904.78,0.00032602,2]
[341347352,1730818334403,-500.0,0.00032602,2]
[341347353,1730818334413,-500.0,0.00032602,2]
[341347354,1730818334423,-22457.59,0.00032602,2]
[341347355,1730818334433,-543.17,0.00032602,2]
[341347356,1730818334442,-621.32,0.00032602,2]
[341347357,1730818334452,-3230.76,0.00032602,2]
[341347358,1730818334461,-851.69,0.00032602,2]
[341347359,1730818334471,-862.17,0.00032602,2]
[341347360,1730818334480,-2720.75,0.00032602,2]
[341347361,1730818334489,-517.2,0.00032602,2]
[341347362,1730818334499,-638.18,0.00032602,2]
[341347363,1730818334509,-947.11,0.00032602,2]
[341347364,1730818334518,-2072.98,0.00032602,2]
[341347365,1730818334527,-3625.83,0.00032602,2]
[341347366,1730818334537,-2681.47,0.00032602,2]
[341347367,1730818334547,-1864.35,0.00032602,2]
[341347368,1730818334558,-738.0,0.00032602,2]
[341347369,1730818334568,-1021.21,0.00032602,2]
[341347370,1730818334577,-203.85,0.00032602,2]
[341347371,1730818334587,-249.61,0.00032629,120]
[341347372,1730818334596,-297.0,0.0003267,29]
[341347373,1730818334605,-155.84,0.0003272,2]
[341347374,1730818334617,-157.91,0.0003272,2]
[341347375,1730818334626,-307.88554437,0.0003285,2]
[341347376,1730818334635,-9266.40089204,0.00032875,2]
[341347377,1730818334644,-959.37,0.00032876,2]
[341347378,1730818334654,-642.42,0.00032876,2]
[341347379,1730818334663,-2202.5,0.00032876,2]
[341347380,1730818334671,-1276.84,0.00032876,2]
[341347381,1730818334680,-524.62,0.00032876,2]
[341347382,1730818334689,-500.0,0.00032876,2]
[341347383,1730818334699,-1325.09,0.00032876,2]
[341347384,1730818334708,-652.16,0.00032876,2]
[341347385,1730818334718,-500.0,0.00032876,2]
[341347386,1730818334727,-500.0,0.00032876,2]
[341347387,1730818334737,-1213.8,0.00032876,2]
[341347388,1730818334746,-543.65,0.00032876,2]
[341347389,1730818334756,-710.18,0.00032876,2]
[341347390,1730818334765,-596.5,0.00032876,2]
[341347391,1730818334775,-1031.26,0.00032876,2]
[341347392,1730818334786,-1810.02,0.00032876,2]
[341347393,1730818334795,-500.0,0.00032876,2]
[341347394,1730818334805,-1006.45,0.00032876,2]
[341347395,1730818334815,-1532.81,0.00032876,2]
[341347396,1730818334824,-1172.46,0.00032876,2]
[341347397,1730818334834,-950.66,0.00032876,2]
[341347398,1730818334844,-566.27,0.00032876,2]
[341347399,1730818334853,-1150.28,0.00032876,2]
[341347400,1730818334864,-1385.21,0.00032876,2]
[341347401,1730818334880,-1053.05,0.00032876,2]
[341347402,1730818334890,-2449.39,0.00032876,2]
[341347403,1730818334900,-551.76,0.00032876,2]
[341347404,1730818334911,-1152.78,0.00032876,2]
[341347405,1730818334921,-505.75,0.00032876,2]
[341347406,1730818334932,-1169.16,0.00032876,2]
[341347407,1730818334942,-500.0,0.00032876,2]
[341347408,1730818334952,-1981.15,0.00032876,2]
[341347409,1730818334962,-500.0,0.00032876,2]
[341347410,1730818334972,-1122.88,0.00032876,2]
[341347411,1730818334982,-667.7,0.00032876,2]
[341347412,1730818334992,-765.3,0.00032876,2]
[341347413,1730818335002,-1179.4,0.00032876,2]
[341347414,1730818335012,-154.405893,0.00032876,7]
[341347415,1730818335022,-1649.88,0.00032876,120]
[341347416,1730818335033,-745.83,0.00032876,2]
[341347417,1730818335043,-154.405893,0.00032876,7]
[341347418,1730818335053,-1138.75,0.00032876,2]
[341347419,1730818335063,-151.0,0.00032876,7]
[341347420,1730818335073,-1546.36,0.00032876,2]
[341347421,1730818335083,-1799.17,0.00032876,2]
[341347422,1730818335092,-918.0,0.00032876,2]
[341347423,1730818335102,-882.74,0.00032876,2]
[341347424,1730818335113,-715.96,0.00032876,2]
[341347425,1730818335126,-1464.77,0.00032876,2]
[341347426,1730818335137,-323.31164427,0.00032876,2]
[341347427,1730818335147,-821.25,0.00032876,2]
[341347428,1730818335157,-561.05,0.00032876,2]
[341347429,1730818335167,-2488.35,0.00032876,2]
[341347430,1730818335177,-1277.43,0.00032876,2]
[341347431,1730818335187,-789.16,0.00032876,2]
[341347432,1730818335196,-1983.46,0.00032876,2]
[341347433,1730818335206,-1319.52,0.00032876,2]
[341347434,1730818335216,-770.21,0.00032876,2]
[341347435,1730818335226,-933.5,0.00032876,2]
[341347436,1730818335236,-1484.81,0.00032876,2]
[341347437,1730818335246,-769.6,0.00032876,2]
[341347438,1730818335256,-2097.16,0.00032876,2]
[341347439,1730818335266,-893.08,0.00032876,2]
[341347440,1730818335280,-706.56,0.00032876,2]
[341347441,1730818335290,-626.22,0.00032876,2]
[341347442,1730818335300,-1129.24,0.00032876,2]
[341347443,1730818335310,-1181.37,0.00032876,2]
[341347444,1730818335320,-1105.93,0.00032876,2]
[341347445,1730818335329,-1949.19,0.00032876,2]
[341347446,1730818335339,-1772.13,0.00032876,2]
[341347447,1730818335348,-2148.83,0.00032876,2]
[341347448,1730818335359,-899.14,0.00032876,2]
[341347449,1730818335374,-500.0,0.00032876,2]
[341347450,1730818335385,-2651.17,0.00032876,2]
[341347451,1730818335395,-729.55,0.00032876,2]
[341347452,1730818335405,-891.77,0.00032876,2]
[341347453,1730818335415,-1337.92,0.00032876,2]
[341347454,1730818335425,-1628.51,0.00032876,2]
[341347455,1730818335436,-1340.76,0.00032876,2]
[341347456,1730818335446,-1205.1,0.00032876,2]
[341347457,1730818335456,-671.93,0.00032876,2]
[341347458,1730818335466,-2625.61,0.00032876,2]
[341347459,1730818335475,-170.31154564,0.00032876,2]
[341347460,1730818335486,-1052.87,0.00032876,2]
[341347461,1730818335496,-862.96,0.00032876,2]
[341347462,1730818335506,-1134.95,0.00032876,2]
[341347463,1730818335516,-713.84,0.00032876,2]
[341347464,1730818335525,-1190.36,0.00032876,2]
[341347465,1730818335535,-561.87,0.00032876,2]
[341347466,1730818335544,-1258.85,0.00032876,2]
[341347467,1730818335554,-708.32,0.00032876,2]
[341347468,1730818335564,-719.74,0.00032876,2]
[341347469,1730818335574,-530.24,0.00032876,2]
[341347470,1730818335585,-533.96,0.00032876,2]
[341347471,1730818335595,-1233.24,0.00032876,2]
[341347472,1730818335605,-1568.32,0.00032876,2]
[341347473,1730818335618,-1593.99,0.00032876,2]
[341347474,1730818335627,-1606.8,0.00032876,2]
[341347475,1730818335637,-1114.96,0.00032876,2]
[341347476,1730818335647,-1019.34,0.00032876,2]
[341347477,1730818335657,-1345.66,0.00032876,2]
[341347478,1730818335667,-573.0,0.00032876,2]
[341347479,1730818335676,-500.0,0.00032876,2]
[341347480,1730818335687,-1308.07,0.00032876,2]
[341347481,1730818335696,-997.78,0.00032876,2]
[341347482,1730818335707,-510.23,0.00032876,2]
[341347483,1730818335716,-619.16,0.00032876,2]
[341347484,1730818335726,-654.14,0.00032876,2]
[341347485,1730818335735,-575.48364597,0.00032876,2]
[341347486,1730818335745,-859.18,0.00032876,2]
[341347487,1730818335755,-685.48,0.00032876,2]
[341347488,1730818335765,-500.0,0.00032876,2]
[341347489,1730818335774,-804.47,0.00032876,2]
[341347490,1730818335783,-1490.72,0.00032876,2]
[341347491,1730818335793,-2778.32,0.00032876,2]
[341347492,1730818335804,-991.64,0.00032876,2]
[341347493,1730818335814,-1058.06,0.00032876,2]
[341347494,1730818335824,-512.56,0.00032876,2]
[341347495,1730818335834,-1286.83,0.00032876,2]
[341347496,1730818335843,-10560.64,0.00032876,2]
[341347497,1730818335853,-460.36129724,0.00032876,2]
[341347498,1730818335863,-574.51,0.00032876,2]
[341347499,1730818335876,-882.25,0.00032876,2]
[341347500,1730818335885,-2024.06,0.00032876,2]
[341347501,1730818335894,-2459.63,0.00032876,2]
[341347502,1730818335904,-522.65,0.00032876,2]
[341347503,1730818335914,-832.24,0.00032876,2]
[341347504,1730818335923,-539.9,0.00032876,2]
[341347505,1730818335933,-528.68,0.00032876,2]
[341347506,1730818335943,-577.06,0.00032876,2]
[341347507,1730818335953,-1759.85,0.00032876,2]
[341347508,1730818335962,-1143.05,0.00032876,2]
[341347509,1730818335972,-2134.71,0.00032876,2]
[341347510,1730818335981,-1180.55,0.00032876,2]
[341347511,1730818335991,-669.82,0.00032876,2]
[341347512,1730818336000,-156.14,0.00032876,2]
[341347513,1730818336010,-2610.73,0.00032876,2]
[341347514,1730818336020,-500.0,0.00032876,2]
[341347515,1730818336030,-812.75,0.00032876,2]
[341347516,1730818336039,-2008.76,0.00032876,2]
[341347517,1730818336050,-151.0,0.00032876,7]
[341347518,1730818336060,-839.69,0.00032876,2]
[341347519,1730818336069,-2029.5,0.00032876,2]
[341347520,1730818336079,-828.58,0.00032876,2]
[341347521,1730818336089,-569.93652487,0.00032876,2]
[341347522,1730818336098,-500.0,0.00032876,2]
[341347523,1730818336108,-500.0,0.00032876,2]
[341347524,1730818336121,-1273.27,0.00032876,2]
[341347525,1730818336132,-590.4,0.00032876,2]
[341347526,1730818336142,-1210.7,0.00032876,2]
[341347527,1730818336151,-1114.81,0.00032876,2]
[341347528,1730818336161,-2727.4,0.00032876,2]
[341347529,1730818336170,-12148.46,0.00032876,2]
[341347530,1730818336180,-2229.83,0.00032876,2]
[341347531,1730818336190,-511.42,0.00032876,2]
[341347532,1730818336200,-500.0,0.00032876,2]
[341347533,1730818336209,-2291.13,0.00032876,2]
[341347534,1730818336218,-500.0,0.00032876,2]
[341347535,1730818336228,-997.05,0.00032876,2]
[341347536,1730818336237,-800.14,0.00032876,2]
[341347537,1730818336247,-1162.23,0.00032876,2]
[341347538,1730818336260,-3281.13,0.00032876,2]
[341347539,1730818336270,-618.36,0.00032876,2]
[341347540,1730818336279,-20453.09,0.00032876,2]
[341347541,1730818336289,-839.45,0.00032876,2]
[341347542,1730818336301,-500.0,0.00032876,2]
[341347543,1730818336311,-694.1,0.00032876,2]
[341347544,1730818336322,-1597.24,0.00032876,2]
[341347545,1730818336333,-4040.37,0.00032876,2]
[341347546,1730818336342,-8586.16,0.00032876,2]
[341347547,1730818336351,-2313.73,0.00032876,2]
[341347548,1730818336360,-1073.79,0.00032876,2]
[341347549,1730818336373,-558.66,0.00032876,2]
[341347550,1730818336383,-5774.21,0.00032876,2]
[341347551,1730818336392,-500.0,0.00032876,2]
[341347552,1730818336402,-1029.49,0.00032876,2]
[341347553,1730818336410,-673.5,0.00032876,2]
[341347554,1730818336418,-2000.0,0.00032876,120]
[341347555,1730818336425,-2000.0,0.00032876,120]
[341347556,1730818336435,-2000.0,0.00032876,120]
[341347557,1730818336444,-1292.55224922,0.00032876,120]
[341347558,1730818336454,-813.15,0.00032876,2]
[341347559,1730818336463,-1674.98,0.00032876,2]
[341347560,1730818336473,-4168.65,0.00032876,2]
[341347561,1730818336484,-2221.75,0.00032876,2]
[341347562,1730818336495,-623.01,0.00032876,2]
[341347563,1730818336504,-722.22,0.00032876,2]
[341347564,1730818336514,-728.55,0.00032876,2]
[341347565,1730818336524,-500.0,0.00032876,2]
[341347566,1730818336533,-500.0,0.00032876,2]
[341347567,1730818336543,-500.0,0.00032876,2]
[341347568,1730818336553,-800.76,0.00032876,2]
[341347569,1730818336563,-500.0,0.00032876,2]
[341347570,1730818336573,-500.0,0.00032876,2]
[341347571,1730818336583,-500.0,0.00032876,2]
[341347572,1730818336592,-500.0,0.00032876,2]
[341347573,1730818336602,-500.0,0.00032876,2]
[341347574,1730818336611,-500.0,0.00032876,2]
[341347575,1730818336624,-500.0,0.00032876,2]
[341347576,1730818336634,-500.0,0.00032876,2]
[341347577,1730818336643,-500.0,0.00032876,2]
[341347578,1730818336652,-500.0,0.00032876,2]
[341347579,1730818336662,-500.0,0.00032876,2]
[341347580,1730818336672,-1037.42,0.00032876,2]
[341347581,1730818336681,-633.10172256,0.00032876,2]
[341347582,1730818336691,-500.0,0.00032876,2]
[341347583,1730818336701,-500.0,0.00032876,2]
[341347584,1730818336711,-500.0,0.00032876,2]
[341347585,1730818336720,-500.0,0.00032876,2]
[341347586,1730818336729,-468.78728402,0.00032876,2]
[341347587,1730818336739,-4458.86,0.00032876,2]
[341347588,1730818336749,-6100.5,0.00032876,2]
[341347589,1730818336758,-1684.86,0.00032876,2]
[341347590,1730818336769,-500.0,0.00032876,2]
[341347591,1730818336778,-746.32,0.00032876,2]
[341347592,1730818336787,-860.55,0.00032876,2]
[341347593,1730818336797,-2800.82,0.00032876,2]
[341347594,1730818336806,-1239.54,0.00032876,2]
[341347595,1730818336816,-3438.17,0.00032876,2]
[341347596,1730818336826,-580.29,0.00032876,2]
[341347597,1730818336836,-2595.38,0.00032876,2]
[341347598,1730818336845,-847.64,0.00032876,2]
[341347599,1730818336855,-2840.74,0.00032876,2]
[341347600,1730818336864,-3998.92,0.00032876,2]
[341347601,1730818336878,-14923.18,0.00032876,2]
[341347602,1730818336887,-500.0,0.00032876,2]
[341347603,1730818336897,-1420.05,0.00032876,2]
[341347604,1730818336907,-349.57247236,0.00032876,2]
[341347605,1730818336917,-7967.31,0.00032876,2]
[341347606,1730818336926,-2786.33,0.00032876,2]
[341347607,1730818336939,-198.8871505,0.00032876,2]
[341347608,1730818336949,-2634.78,0.00032876,2]
[341347609,1730818336958,-500.0,0.00032876,2]
[341347610,1730818336968,-4963.13,0.00032876,2]
[341347611,1730818337143,-1373.68,0.00032876,2]
[341347612,1730818337162,-3175.23,0.00032876,2]
[341347613,1730818337171,-1485.58,0.00032876,2]
[341347614,1730818337180,-8714.97,0.00032876,2]
[341347615,1730818337190,-500.0,0.00032876,2]
[341347616,1730818337199,-1668.5,0.00032876,2]
[341347617,1730818337209,-580.17,0.00032876,2]
[341347618,1730818337219,-2394.75,0.00032876,2]
[341347619,1730818337228,-3537.3,0.00032876,2]
[341347620,1730818337237,-870.25,0.00032876,2]
[341347621,1730818337246,-812.1,0.00032876,2]
[341347622,1730818337256,-641.36,0.00032876,2]
[341347623,1730818337265,-519.6,0.00032876,2]
[341347624,1730818337277,-1061.46,0.00032876,2]
[341347625,1730818337287,-5273.27,0.00032876,2]
[341347626,1730818337296,-2904.78,0.00032876,2]
[341347627,1730818337305,-500.0,0.00032876,2]
[341347628,1730818337315,-500.0,0.00032876,2]
[341347629,1730818337324,-22457.59,0.00032876,2]
[341347630,1730818337333,-543.17,0.00032876,2]
[341347631,1730818337343,-621.32,0.00032876,2]
[341347632,1730818337352,-3230.76,0.00032876,2]
[341347633,1730818337361,-851.69,0.00032876,2]
[341347634,1730818337372,-862.17,0.00032876,2]
[341347635,1730818337382,-2720.75,0.00032876,2]
[341347636,1730818337391,-517.2,0.00032876,2]
[341347637,1730818337400,-638.18,0.00032876,2]
[341347638,1730818337409,-947.11,0.00032876,2]
[341347639,1730818337419,-2072.98,0.00032876,2]
[341347640,1730818337428,-3625.83,0.00032876,2]
[341347641,1730818337437,-2681.47,0.00032876,2]
[341347642,1730818337446,-1864.35,0.00032876,2]
[341347643,1730818337455,-738.0,0.00032876,2]
[341347644,1730818337465,-1021.21,0.00032876,2]
[341347645,1730818337474,-1000.0,0.00032877,7]
[341347646,1730818337483,-1000.0,0.00032877,7]